bitfinex-derivatives/quotes_ETHF0:USTF0_20250701
["timestamp","ask_amount","ask_price","bid_price","bid_amount"]
[1751377249523,6.59112338,2436.7,2436.4,1.98321539]
[1751377249719,0.82061,2436.5,2436.1,0.82072]
[1751377249921,42.1448,2436.4,2435.6,4.05275422]
[1751377250218,42.1448,2436.4,2435.5,13.88729]
[1751377250417,42.1448,2436.4,2436.3,0.82067]
[1751377250622,42.1448,2436.4,2436.2,0.82068]
[1751377250823,42.1448,2436.4,2435.8,2.05209]
[1751377251121,42.1448,2436.4,2436.3,0.82067]
[1751377251718,65.57592338,2436.4,2435.4,2.05243]
[1751377251924,25.505,2436.3,2435.2,1.435]
[1751377252124,0.82074,2436.1,2435.2,3.48758]
[1751377252421,1.3708,2436.2,2434.7,30.3762]
[1751377252422,2.19157,2436.0,2434.8,8.64404338]
[1751377252619,0.82081,2435.9,2435.1,1.435]
[1751377252823,6.59112338,2435.5,2434.3,4.05275422]
[1751377253026,0.82103,2435.3,2434.3,6.59112338]
[1751377253219,1.3708,2435.2,2434.3,6.59112338]
[1751377253420,7.41207338,2435.5,2435.3,0.82099]
[1751377253421,25.558,2435.5,2435.3,0.82099]
[1751377253617,25.558,2435.5,2434.4,18.43112338]
[1751377253824,1.3708,2435.4,2434.6,2.05311]
[1751377254016,25.565,2435.3,2434.5,10.07930338]
[1751377254222,1.3708,2435.3,2434.5,1.435]
[1751377254418,40.8,2436.4,2435.2,6.59112338]
[1751377254728,2.27198,2436.3,2435.7,0.82086]
[1751377254923,25.627,2436.2,2435.4,0.82096]
[1751377255119,10.09434338,2436.1,2434.7,6.59112338]
[1751377255423,0.82088,2435.7,2435.1,0.82106]
[1751377255620,1.4513,2435.6,2435.1,0.82106]
[1751377255821,2.27222,2435.6,2435.0,0.82109]
[1751377256022,1.4513,2435.6,2434.8,11.888]
[1751377256414,2.27221,2435.6,2435.1,0.82106]
[1751377256615,2.05234,2435.5,2434.6,59.075]
[1751377256821,32.24112338,2435.8,2434.5,11.892]
[1751377256822,1.4513,2435.4,2434.5,11.892]
[1751377257016,0.82107,2435.1,2434.7,0.82119]
[1751377257214,1.4513,2435.4,2434.5,11.892]
[1751377257425,1.4513,2435.4,2434.7,0.8212]
[1751377257426,0.82108,2435.1,2434.7,0.8212]
[1751377257719,1.4513,2435.4,2434.7,6.59112338]
[1751377257720,0.82105,2435.2,2434.7,6.59112338]
[1751377257924,1.4513,2435.4,2434.7,0.82119]
[1751377258122,0.82106,2435.2,2434.8,0.82117]
[1751377258326,1.4151,2435.1,2434.5,13.2565]
[1751377258525,1.4151,2435.1,2434.7,0.82119]
[1751377258728,1.4151,2435.1,2434.5,13.2565]
[1751377259027,1.4151,2435.1,2434.5,0.82124]
[1751377259229,1.4151,2435.1,2434.2,1.3645]
[1751377259522,2.23618,2435.1,2434.3,6.59112338]
[1751377259720,40.8,2435.0,2434.3,6.59112338]
[1751377260028,1.4151,2434.9,2433.9,59.092]
[1751377260221,1.4151,2434.9,2432.8,0.25817411]
[1751377260420,39.2888,2434.8,2433.4,6.59112338]
[1751377260623,37.664,2435.2,2434.3,6.59112338]
[1751377260818,37.664,2435.2,2434.7,0.82119]
[1751377260819,2.16009,2435.1,2434.7,0.82119]
[1751377261120,2.16009,2435.1,2434.7,0.82118]
[1751377261322,1.339,2435.1,2434.8,0.82115]
[1751377261822,2.16008,2435.1,2434.7,0.82119]
[1751377262029,2.16008,2435.1,2434.3,8.64448338]
[1751377262228,2.16008,2435.1,2433.0,4.10883]
[1751377262229,2.05288,2434.9,2433.0,4.10883]
[1751377262522,2.05302,2434.7,2433.5,18.73012338]
[1751377262827,2.0532,2434.5,2433.5,8.01532338]
[1751377263125,0.82137,2434.3,2433.5,8.01532338]
[1751377263323,1.339,2434.2,2433.5,8.01532338]
[1751377263518,2.16039,2434.2,2433.5,8.01532338]
[1751377263725,0.82143,2434.1,2433.8,0.8215]
[1751377263922,0.8216,2433.6,2433.2,0.8217]
[1751377264228,0.82153,2433.8,2433.4,0.82163]
[1751377264520,2.05344,2434.2,2433.4,0.82162]
[1751377264722,2.05344,2434.2,2433.6,0.82156]
[1751377264723,0.82148,2433.9,2433.6,0.82156]
[1751377264928,0.82146,2434.0,2433.6,0.82156]
[1751377265126,1.4326,2433.9,2433.5,0.82159]
[1751377265431,0.82136,2434.3,2433.4,6.59112338]
[1751377265629,0.8214,2434.2,2433.5,1.4218]
[1751377265826,13.5736,2434.5,2433.5,1.4218]
[1751377266334,0.82138,2434.2,2433.9,0.82146]
[1751377266526,13.5736,2434.5,2433.5,3.4758]
[1751377266527,2.25402,2434.1,2433.5,1.4218]
[1751377266723,0.82146,2434.0,2433.7,0.82153]
[1751377266919,0.82153,2433.8,2433.5,0.8216]
[1751377267126,1.3681,2434.0,2432.9,2.05448]
[1751377267320,1.3681,2434.0,2433.1,2.05437]
[1751377267525,1.3681,2434.0,2433.8,0.82148]
[1751377267825,40.8,2434.4,2433.6,2.05391]
[1751377268030,1.3681,2434.4,2434.1,0.82139]
[1751377268226,0.7623,2434.8,2434.0,2.05358]
[1751377268428,1.3681,2434.7,2433.8,2.05374]
[1751377268732,2.0526,2435.2,2434.0,2.05361]
[1751377269026,0.82122,2434.7,2434.5,0.82127]
[1751377269225,1.3681,2435.1,2434.6,0.82122]
[1751377269430,0.82118,2434.8,2434.3,12.147]
[1751377269630,1.3681,2434.7,2434.6,0.82123]
[1751377269829,0.82112,2435.0,2434.3,14.20033]
[1751377270031,1.3754,2435.1,2434.4,3.47437]
[1751377270232,0.82113,2435.0,2434.4,3.47437]
[1751377270529,1.3754,2435.1,2435.0,0.8211]
[1751377270730,1.3754,2435.1,2434.6,2.0531]
[1751377271132,1.3754,2435.1,2435.0,0.8211]
[1751377271531,0.82106,2435.2,2434.6,3.47417]
[1751377271731,0.82106,2435.2,2435.0,0.82109]
[1751377271926,1.3754,2435.5,2434.6,3.47417]
[1751377272132,1.5904,2436.0,2435.0,2.05272]
[1751377272133,3.64234,2436.0,2435.0,2.05272]
[1751377272323,3.42757,2435.8,2434.9,12.147]
[1751377272524,1.3754,2435.8,2435.2,0.82103]
[1751377272727,1.76355942,2435.8,2435.2,0.82103]
[1751377272927,0.82092,2435.6,2435.4,0.82096]
[1751377273134,2.24675,2435.5,2435.3,0.82098]
[1751377273524,1.4258,2435.5,2434.9,13.5681]
[1751377273736,1.4258,2435.5,2435.3,0.821]
[1751377273737,2.24675,2435.5,2435.3,0.821]
[1751377273926,2.05243,2435.4,2434.4,8.64436338]
[1751377274131,3.47831,2435.3,2434.5,12.147]
[1751377274430,3.47831,2435.3,2434.6,0.82123]
[1751377274431,2.05268,2435.1,2434.6,0.82123]
[1751377274628,2.05288,2434.9,2434.2,12.147]
[1751377274831,2.05288,2434.9,2433.9,0.82147]
[1751377274832,2.05327,2434.4,2433.9,0.82147]
[1751377275033,3.4792,2434.3,2433.5,14.3659]
[1751377275237,0.82142,2434.1,2433.5,14.3659]
[1751377275532,2.05383,2433.8,2433.1,59.142]
[1751377275728,0.82162,2433.5,2433.1,59.142]
[1751377275925,1.3579,2433.7,2433.5,0.82158]
[1751377276133,2.17946,2433.7,2433.5,0.8216]
[1751377276335,1.3579,2433.7,2433.5,0.82158]
[1751377276530,0.82145,2434.0,2433.8,0.82148]
[1751377276740,1.3579,2434.3,2434.2,0.82137]
[1751377277032,61.19499,2434.8,2433.6,2.05394]
[1751377277033,0.7893,2434.9,2434.6,0.82122]
[1751377277234,0.7893,2434.9,2434.3,2.05335]
[1751377277434,2.43451483,2434.8,2434.6,0.82122]
[1751377277738,1.3579,2434.8,2434.3,2.05335]
[1751377277935,1.3579,2434.8,2434.7,0.8212]
[1751377278140,1.3579,2435.4,2435.3,0.821]
[1751377278325,1.3579,2435.4,2435.2,0.82103]
[1751377278326,2.43707972,2435.4,2435.2,0.82103]
[1751377278635,1.07917972,2435.3,2435.2,0.82103]
[1751377279229,1.07917972,2435.3,2435.2,5.82103]
[1751377279430,4.6090171,2436.1,2435.8,0.82081]
[1751377279628,4.6090171,2436.1,2435.9,0.82077]
[1751377279629,1.08171234,2436.0,2435.9,0.82077]
[1751377280034,3.2659171,2436.5,2436.4,0.82063]
[1751377280225,4.08239638,2436.9,2436.8,0.8205]
[1751377280834,3.2420602,2437.2,2436.6,6.59112338]
[1751377281036,1.3431,2437.2,2436.5,12.146]
[1751377281235,1.3431,2437.2,2436.6,1.3676]
[1751377281429,1.3431,2437.2,2436.5,18.73712338]
[1751377281938,2.16346,2437.2,2436.8,0.82048]
[1751377282131,1.3431,2437.2,2436.8,0.82048]
[1751377282333,1.3431,2437.2,2436.5,18.73712338]
[1751377282642,1.3431,2437.2,2436.8,0.82049]
[1751377283140,1.3431,2437.2,2436.5,18.73712338]
[1751377283339,1.3431,2437.2,2436.6,3.36221]
[1751377283540,1.3431,2437.2,2437.0,0.82041]
[1751377283742,1.3431,2437.2,2437.0,0.82042]
[1751377283939,1.60461,2437.7,2436.8,8.64231338]
[1751377284239,0.82034,2437.3,2436.9,0.82045]
[1751377284442,0.82031,2437.4,2437.0,0.82043]
[1751377284647,1.3314,2437.2,2437.1,0.82039]
[1751377284847,0.7844,2437.7,2437.2,0.82033]
[1751377285038,2.23103,2437.6,2437.2,0.82035]
[1751377285238,2.23103,2437.6,2437.1,0.82037]
[1751377285441,1.4108,2437.6,2436.6,0.7703]
[1751377285742,12.143,2438.0,2437.5,0.82026]
[1751377286042,0.82018,2437.8,2437.0,6.59112338]
[1751377286244,0.82018,2437.8,2437.4,0.82026]
[1751377286446,2.231,2437.7,2437.3,0.8203]
[1751377286641,2.231,2437.7,2437.1,1.4045]
[1751377286642,1.4108,2437.7,2437.1,1.4045]
[1751377286841,1.4108,2437.7,2437.3,0.8203]
[1751377287039,0.82028,2437.5,2436.8,8.64230338]
[1751377287243,0.7727,2438.1,2436.7,1.4045]
[1751377287244,2.23112,2437.4,2436.7,1.4045]
[1751377287443,2.23112,2437.4,2437.0,0.8204]
[1751377287639,1.4108,2437.4,2436.7,1.4045]
[1751377287846,1.4108,2437.4,2436.8,0.82046]
[1751377288042,0.82039,2437.2,2436.9,0.82046]
[1751377288243,6.59112338,2437.9,2436.7,2.05133]
[1751377288442,2.82286,2438.1,2436.7,2.05133]
[1751377288443,1.3239,2437.5,2437.3,0.82032]
[1751377288744,1.3239,2437.5,2436.7,1.341]
[1751377288952,1.3239,2437.5,2436.8,18.73212338]
[1751377289155,2.14417,2437.5,2437.2,0.82033]
[1751377289355,2.14416,2437.5,2437.2,0.82034]
[1751377289655,2.14418,2437.5,2436.8,20.78333338]
[1751377289855,1.3239,2437.5,2437.4,0.82029]
[1751377290157,0.7727,2438.1,2437.1,8.64206338]
[1751377290351,0.82014,2437.9,2437.6,0.82021]
[1751377290552,1.3239,2437.8,2437.7,0.82019]
[1751377290753,2.14407,2437.8,2437.5,0.82024]
[1751377291459,0.82006,2438.1,2437.8,0.82014]
[1751377291654,1.3885,2438.2,2437.4,18.73012338]
[1751377291854,2.2086,2438.0,2437.7,0.82018]
[1751377292052,1.3885,2438.0,2437.4,20.78082338]
[1751377292257,0.38362828,2438.3,2437.4,20.78082338]
[1751377292453,2.20849,2438.3,2438.0,0.82007]
[1751377292760,0.82002,2438.2,2437.9,0.8201]
[1751377292954,0.82002,2438.2,2437.7,6.59112338]
[1751377292955,0.82006,2438.1,2437.8,0.82014]
[1751377293356,1.3885,2438.2,2438.0,0.82007]
[1751377293553,1.3885,2438.2,2437.6,12.163]
[1751377293755,1.3885,2438.2,2437.9,0.82011]
[1751377293952,2.20854,2438.2,2437.9,0.82011]
[1751377294162,1.3885,2438.2,2437.5,13.5274]
[1751377294357,3.43861,2438.2,2437.7,0.82017]
[1751377294661,0.82024,2437.6,2437.4,0.82028]
[1751377294860,0.82024,2437.6,2437.3,12.9833]
[1751377295159,2.24258,2437.5,2437.2,12.98334]
[1751377295361,1.4223,2437.5,2437.2,12.163]
[1751377295553,2.0502,2438.1,2437.2,12.163]
[1751377295753,3.47272,2437.8,2437.1,6.59112338]
[1751377295953,0.8203,2437.4,2437.2,12.98134]
[1751377296155,0.8203,2437.4,2437.2,0.82034]
[1751377296552,0.82025,2437.6,2437.4,0.82028]
[1751377296762,1.4223,2437.5,2437.1,14.21197]
[1751377297065,1.4223,2437.5,2437.4,0.82029]
[1751377297461,2.24257,2437.5,2437.3,0.8203]
[1751377297658,0.82041,2437.1,2436.9,0.82045]
[1751377297955,1.4412,2437.0,2436.2,2.63729863]
[1751377298157,3.49231,2437.0,2436.4,0.82061]
[1751377298357,0.82056,2436.7,2436.4,0.82061]
[1751377298557,1.4412,2436.6,2436.4,0.82061]
[1751377298760,1.4412,2436.6,2436.5,0.82059]
[1751377298961,0.4412,2436.6,2436.5,0.82059]
[1751377299261,2.0511,2437.0,2436.2,1.21799863]
[1751377299554,6.59112338,2437.1,2436.2,1.21799863]
[1751377299755,2.05134,2436.7,2436.2,1.21799863]
[1751377299955,0.82064,2436.4,2436.2,2.03867863]
[1751377300152,12.161,2437.0,2436.2,2.03867863]
[1751377300153,0.82057,2436.6,2436.4,0.82061]
[1751377300362,0.82055,2436.7,2436.5,0.82059]
[1751377300551,0.82061,2436.5,2436.3,0.82064]
[1751377300752,2.05128,2436.8,2436.2,1.21799863]
[1751377300951,2.05118,2436.9,2436.2,1.21799863]
[1751377301155,14.21209,2437.0,2436.4,0.82061]
[1751377301354,0.82059,2436.5,2436.4,0.82061]
[1751377301560,0.82063,2436.4,2436.2,1.21799863]
[1751377301763,0.82063,2436.4,2436.2,2.03866863]
[1751377302057,40.8,2436.9,2436.1,2.05175]
[1751377302263,0.82057,2436.6,2436.4,0.8206]
[1751377302458,0.82059,2436.5,2436.3,0.82064]
[1751377302659,0.82058,2436.6,2436.4,0.82061]
[1751377302853,1.4375,2436.8,2436.6,0.82056]
[1751377302854,2.25802,2436.8,2436.6,0.82056]
[1751377303060,1.4375,2436.8,2436.1,1.4086]
[1751377303263,2.05133,2436.7,2436.0,6.59112338]
[1751377303464,0.82071,2436.2,2436.0,0.82074]
[1751377303664,2.0516,2436.4,2435.9,0.82079]
[1751377303858,0.82076,2436.0,2435.9,0.82079]
[1751377304058,2.23784,2436.1,2435.6,2.05224]
[1751377304266,0.82078,2436.0,2435.8,0.82081]
[1751377304964,1.4171,2436.1,2436.0,0.82076]
[1751377305163,0.82069,2436.3,2435.8,2.05207]
[1751377305358,2.1733,2436.5,2436.2,0.8207]
[1751377305759,2.1733,2436.5,2436.3,0.82066]
[1751377305962,4.22483,2436.5,2436.0,0.82075]
[1751377306154,4.22483,2436.5,2436.0,0.82076]
[1751377306359,0.8207,2436.2,2435.8,2.05208]
[1751377306563,1.354,2436.1,2436.0,0.82076]
[1751377306763,1.354,2436.1,2435.9,0.82077]
[1751377306764,2.17475,2436.1,2435.9,0.82077]
[1751377307078,2.05192,2436.0,2435.2,3.27051863]
[1751377307366,1.354,2435.9,2435.2,3.27051863]
[1751377307570,1.354,2435.9,2435.4,2.05242]
[1751377307571,0.82083,2435.8,2435.4,2.05242]
[1751377307972,0.82087,2435.7,2435.5,0.82091]
[1751377308169,0.82092,2435.6,2435.4,0.82096]
[1751377308466,0.82097,2435.4,2435.2,2.03900863]
[1751377308665,0.82097,2435.4,2434.9,2.43604306]
[1751377308666,0.82107,2435.1,2435.0,1.21799863]
[1751377309069,0.82107,2435.1,2434.5,3.24491078]
[1751377309070,0.82112,2435.0,2434.8,1.21799863]
[1751377309372,0.82109,2435.1,2434.9,0.82111]
[1751377309570,0.82109,2435.1,2434.6,1.21799863]
[1751377309571,1.354,2435.3,2434.7,2.05296]
[1751377309871,40.8,2435.4,2435.0,6.59112338]
[1751377310073,1.3865,2435.6,2435.5,0.82093]
[1751377310274,1.5774,2435.8,2435.4,2.05242]
[1751377310569,40.8,2435.7,2435.6,0.82089]
[1751377310777,40.8,2435.7,2435.1,1.3583]
[1751377311072,2.20741,2435.6,2435.3,0.82098]
[1751377311272,1.3865,2435.6,2435.3,0.821]
[1751377311580,1.3865,2435.6,2435.1,1.21799863]
[1751377311768,1.3865,2435.6,2435.0,1.21799863]
[1751377312072,1.3865,2435.6,2435.1,1.21799863]
[1751377312273,0.82098,2435.4,2435.1,0.82107]
[1751377312474,0.82095,2435.5,2435.2,0.82101]
[1751377312876,1.3865,2435.6,2434.9,2.62809863]
[1751377313174,0.82096,2435.5,2435.3,0.82099]
[1751377314264,2.20742,2435.6,2435.4,0.82094]
[1751377314469,1.3865,2435.6,2435.5,0.82093]
[1751377314668,2.2074,2435.6,2435.1,1.4101]
[1751377314873,2.20742,2435.6,2435.3,0.82098]
[1751377315270,2.20742,2435.6,2435.1,1.4101]
[1751377315271,1.3865,2435.6,2435.1,3.46276]
[1751377315571,0.8209,2435.7,2435.5,0.82093]
[1751377315769,1.4096,2435.7,2435.2,2.05259]
[1751377315964,1.4096,2435.7,2435.1,8.00122338]
[1751377315965,1.5774,2435.8,2435.7,0.82086]
[1751377316370,1.5774,2435.8,2435.3,2.05251]
[1751377316371,2.39824,2435.8,2435.6,0.82088]
[1751377316570,1.5774,2435.8,2435.7,0.82086]
[1751377316767,1.5774,2435.8,2435.3,1.4296]
[1751377316966,1.5774,2435.8,2435.3,0.82098]
[1751377316967,0.82094,2435.5,2435.3,0.82098]
[1751377317169,1.4096,2435.7,2435.1,8.64370338]
[1751377317370,1.4096,2435.7,2435.6,0.82087]
[1751377317568,2.23043,2435.7,2435.2,3.4821]
[1751377317771,1.4096,2435.7,2435.2,1.4296]
[1751377317971,2.23045,2435.7,2435.5,0.82089]
[1751377318177,1.4096,2435.7,2435.6,0.82087]
[1751377318572,0.82089,2435.6,2435.4,0.82093]
[1751377318775,0.82088,2435.6,2435.4,0.82093]
[1751377319066,3.4617,2435.7,2435.2,0.82098]
[1751377319266,1.3746,2435.5,2434.8,2.05286]
[1751377319467,2.0521,2435.7,2434.9,8.64385338]
[1751377319672,0.82097,2435.4,2435.2,0.821]
[1751377320081,0.82086,2435.7,2435.1,2.05258]
[1751377320278,2.19535,2436.0,2435.8,0.82078]
[1751377320873,0.82081,2435.8,2435.6,0.82085]
[1751377321073,0.82081,2435.8,2435.2,10.02908338]
[1751377321074,0.82084,2435.7,2435.5,0.82089]
[1751377321374,2.05194,2435.9,2435.2,3.43802]
[1751377321576,3.43266,2435.8,2434.9,22.43684155]
[1751377321774,2.05219,2435.6,2435.1,0.82103]
[1751377321975,0.82107,2435.1,2434.7,0.8285]
[1751377322178,4.24344,2435.5,2435.1,0.82103]
[1751377322382,2.1911,2435.5,2434.9,2.05277]
[1751377322575,4.24338,2435.5,2434.8,1.3778]
[1751377322776,0.82099,2435.3,2435.1,0.82103]
[1751377322977,0.82107,2435.1,2434.9,0.8211]
[1751377323481,0.82107,2435.1,2435.0,0.82108]
[1751377323676,0.82098,2435.3,2434.7,2.2063]
[1751377323982,2.1911,2435.5,2435.0,2.05265]
[1751377324180,0.82095,2435.4,2435.2,0.82098]
[1751377324378,2.1911,2435.5,2435.0,2.05265]
[1751377324582,4.2434,2435.5,2435.0,0.82106]
[1751377324771,0.82097,2435.4,2434.7,4.25925]
[1751377324974,1.4106,2435.4,2435.2,0.82101]
[1751377325176,1.4106,2435.4,2434.7,4.25925]
[1751377325476,2.05263,2435.1,2434.3,2.43604306]
[1751377325780,12.9165,2435.5,2434.3,11.08039644]
[1751377325979,2.0527,2435.0,2434.5,0.82124]
[1751377326179,0.8212,2434.7,2434.6,0.82121]
[1751377326376,0.82121,2434.6,2434.2,5.85011306]
[1751377326579,0.82124,2434.5,2434.4,0.82127]
[1751377326779,2.05296,2434.7,2434.1,2.43604306]
[1751377326978,0.82135,2434.2,2434.1,2.43604306]
[1751377327383,2.05304,2434.6,2434.1,0.82138]
[1751377327384,0.82133,2434.3,2434.1,0.82138]
[1751377327580,0.82135,2434.2,2434.0,0.8214]
[1751377327884,0.7966,2434.7,2434.6,0.82121]
[1751377328082,1.4547,2435.2,2435.1,0.82104]
[1751377328276,12.9128,2435.5,2435.1,0.82102]
[1751377328578,40.8,2435.4,2435.3,0.82096]
[1751377328978,0.7706,2435.5,2435.4,0.82094]
[1751377329686,0.82099,2435.3,2434.8,1.3888]
[1751377329980,1.4547,2435.4,2435.3,0.82098]
[1751377330176,1.4547,2435.4,2434.8,1.3888]
[1751377330383,1.4547,2435.4,2434.5,2.12549]
[1751377330582,0.82105,2435.1,2434.8,0.82113]
[1751377330779,2.2812,2435.4,2434.3,2.05326]
[1751377330980,1.4453,2435.0,2434.3,2.44324446]
[1751377331182,1.4453,2435.0,2434.4,2.44324446]
[1751377331385,0.82116,2434.8,2434.4,2.44324446]
[1751377331577,0.82114,2434.9,2434.6,0.8212]
[1751377331784,1.4453,2435.0,2434.2,63.40745]
[1751377331785,1.4453,2435.0,2434.5,2.44324446]
[1751377331984,0.82106,2435.1,2434.8,0.82112]
[1751377332179,0.82106,2435.1,2434.8,0.82113]
[1751377332478,0.82118,2434.7,2434.6,2.44324446]
[1751377332684,1.4453,2435.0,2434.7,0.82118]
[1751377332880,2.26641,2435.0,2434.7,0.82118]
[1751377333079,0.82111,2434.9,2434.7,0.82118]
[1751377333285,1.4453,2435.0,2434.8,0.82113]
[1751377333481,2.26639,2435.0,2434.8,0.82113]
[1751377333688,0.82111,2434.9,2434.7,0.82116]
[1751377333884,0.8265,2435.4,2434.6,2.44324446]
[1751377334084,0.82107,2435.1,2434.9,0.82111]
[1751377334385,2.2471,2435.4,2434.9,0.82111]
[1751377334692,2.2471,2435.4,2434.9,0.82109]
[1751377334989,2.2471,2435.4,2434.7,1.3893]
[1751377335185,0.8265,2435.4,2434.9,6.59112338]
[1751377335485,0.82102,2435.2,2435.0,0.82106]
[1751377335689,1.4206,2435.3,2434.5,3.20864446]
[1751377335984,0.821,2435.3,2434.7,0.82118]
[1751377336185,1.64746,2435.4,2435.2,0.821]
[1751377336490,0.82099,2435.3,2435.1,0.82103]
[1751377336689,0.82099,2435.3,2434.8,1.3893]
[1751377336690,3.00827,2435.4,2435.2,0.82101]
[1751377337083,3.00827,2435.4,2434.8,3.44215]
[1751377337084,2.05179,2436.1,2435.0,6.59112338]
[1751377337284,0.82086,2435.7,2435.5,0.8209]
[1751377337785,0.8208,2435.9,2435.6,0.82085]
[1751377337990,2.05186,2436.0,2435.1,3.48022]
[1751377338186,0.82087,2435.7,2435.4,0.82091]
[1751377338681,0.82087,2435.7,2435.5,0.82091]
[1751377338885,40.8,2435.8,2435.7,0.82084]
[1751377339585,40.8,2435.8,2435.7,2.24844]
[1751377340685,40.8,2435.8,2435.7,0.82084]
[1751377342996,40.8,2435.8,2435.7,2.23404]
[1751377343692,0.82064,2436.3,2436.1,0.82067]
[1751377343883,0.36753162,2436.4,2436.2,0.82067]
[1751377344083,40.8,2436.3,2436.2,0.82067]
[1751377344388,0.7812,2436.7,2436.2,7.41179338]
[1751377344588,2.1244,2437.1,2437.0,0.8204]
[1751377344795,0.7756,2437.6,2437.5,0.82024]
[1751377344983,41.5756,2437.6,2437.5,0.82024]
[1751377345392,41.5756,2437.6,2436.8,10.05550338]
[1751377345589,0.8203,2437.4,2437.1,0.82037]
[1751377345891,1.3488,2437.5,2436.8,1.4132]
[1751377346088,0.82039,2437.1,2436.8,1.4132]
[1751377346283,3.39942,2437.5,2436.7,2.44324446]
[1751377346489,42.39581,2437.6,2437.3,0.82028]
[1751377346892,42.39582,2437.6,2437.3,0.82027]
[1751377347283,41.5756,2437.6,2437.2,6.59112338]
[1751377347591,41.5756,2437.6,2436.7,2.44324446]
[1751377347592,40.8,2437.6,2436.7,2.44324446]
[1751377347789,1.3156,2437.5,2436.9,0.82041]
[1751377347988,3.36622,2437.5,2436.8,0.82045]
[1751377348189,0.82036,2437.2,2436.8,0.82045]
[1751377348391,1.3156,2437.5,2436.6,8.64243338]
[1751377348591,0.82033,2437.3,2437.0,0.82039]
[1751377348793,0.82027,2437.4,2437.1,0.82035]
[1751377348993,1.3156,2437.5,2436.9,6.59112338]
[1751377349292,0.82031,2437.3,2437.0,0.82038]
[1751377349894,1.3156,2437.5,2436.9,7.41154338]
[1751377350093,0.82037,2437.2,2436.9,7.41154338]
[1751377350294,0.82034,2437.2,2437.0,0.82039]
[1751377350497,0.82038,2437.1,2436.9,7.41155338]
[1751377350799,0.82035,2437.2,2436.9,7.41155338]
[1751377351097,2.05068,2437.4,2436.6,6.59112338]
[1751377351298,0.82035,2437.2,2436.6,8.64244338]
[1751377351491,2.16862,2437.3,2437.0,0.82038]
[1751377351693,0.82036,2437.2,2437.0,0.82039]
[1751377351893,0.82036,2437.2,2436.9,0.82041]
[1751377352098,0.82033,2437.3,2437.0,0.82039]
[1751377352293,0.82032,2437.3,2437.0,0.82038]
[1751377352497,0.82033,2437.3,2437.0,0.82038]
[1751377352693,0.82033,2437.3,2436.9,6.59112338]
[1751377352893,0.82034,2437.2,2437.0,0.8204]
[1751377353398,44.91774,2437.6,2437.1,0.82037]
[1751377353598,0.82032,2437.3,2437.1,0.82037]
[1751377353898,0.82038,2437.1,2436.9,0.82041]
[1751377354096,0.82036,2437.2,2437.0,0.8204]
[1751377354300,0.82032,2437.3,2436.9,6.59112338]
[1751377354593,0.82038,2437.1,2436.4,2.05152]
[1751377354791,1.3113,2437.2,2436.8,0.82045]
[1751377354991,0.82037,2437.1,2436.9,0.82042]
[1751377355194,41.5559,2437.6,2437.1,0.82037]
[1751377355399,0.82029,2437.4,2437.2,0.82033]
[1751377355598,1.3885,2437.5,2436.9,7.99582338]
[1751377355798,0.82029,2437.4,2436.9,7.99582338]
[1751377356098,2.20875,2437.5,2436.9,7.99582338]
[1751377356295,2.20875,2437.5,2437.0,2.05102]
[1751377356509,2.20876,2437.5,2437.3,0.8203]
[1751377356698,2.20876,2437.5,2437.0,1.4047]
[1751377356895,0.82027,2437.4,2437.0,1.4047]
[1751377357095,1.3885,2437.5,2437.1,0.82036]
[1751377357289,0.82032,2437.3,2436.9,6.59112338]
[1751377357493,0.8203,2437.4,2437.1,0.82035]
[1751377357694,0.82029,2437.4,2437.2,0.82033]
[1751377358194,0.82029,2437.4,2436.9,8.64221338]
[1751377358195,0.82031,2437.3,2437.1,0.82034]
[1751377358395,0.82029,2437.4,2437.2,0.82034]
[1751377358593,0.82029,2437.4,2436.9,6.59112338]
[1751377358793,0.82029,2437.4,2437.2,0.82032]
[1751377359295,0.82029,2437.4,2437.1,0.82035]
[1751377359495,0.8203,2437.4,2437.1,0.82035]
[1751377359690,1.3885,2437.5,2436.9,6.59112338]
[1751377360003,0.8203,2437.4,2437.1,0.82036]
[1751377360301,1.3885,2437.5,2436.9,6.59112338]
[1751377360491,0.82038,2437.1,2436.9,8.73734338]
[1751377360691,0.8204,2437.0,2436.9,1.3258]
[1751377360891,0.8204,2437.1,2436.9,0.82042]
[1751377361298,0.82043,2437.0,2436.8,0.82046]
[1751377361502,0.82043,2437.0,2436.9,0.82044]
[1751377361699,0.82039,2437.1,2436.9,0.82044]
[1751377361900,0.82039,2437.1,2436.7,2.05126]
[1751377362098,0.82039,2437.1,2437.0,0.82041]
[1751377362298,1.3559,2437.3,2437.0,6.59112338]
[1751377362499,0.7559,2437.6,2437.0,6.59112338]
[1751377362698,1.57614,2437.6,2437.4,0.82026]
[1751377362901,0.82024,2437.5,2437.3,0.82028]
[1751377363205,0.7559,2437.6,2437.0,6.59112338]
[1751377363507,0.82035,2437.2,2437.0,0.82039]
[1751377363703,0.82035,2437.2,2436.7,10.03547338]
[1751377363704,0.82033,2437.3,2437.1,0.82037]
[1751377363904,0.82029,2437.4,2436.9,2.0511]
[1751377364105,0.82029,2437.4,2437.2,0.82031]
[1751377364407,1.3559,2437.5,2437.3,0.8203]
[1751377364704,2.17616,2437.5,2437.3,0.8203]
[1751377365003,1.3559,2437.5,2436.9,2.0511]
[1751377365204,3.4065,2437.5,2436.8,6.59112338]
[1751377365404,0.82037,2437.2,2437.0,0.8204]
[1751377365597,0.82037,2437.1,2437.0,0.8204]
[1751377365801,0.82041,2437.0,2436.8,6.59112338]